bitfinex-derivatives/quotes_BTCF0:USTF0_20251009
["timestamp","ask_amount","ask_price","bid_price","bid_amount"]
[1760020683671,0.50869,121680.0,121670.0,0.7758]
[1760020684075,0.50869,121680.0,121670.0,0.001]
[1760020684273,0.50869,121680.0,121670.0,0.77556]
[1760020684471,0.86949,121680.0,121670.0,0.77556]
[1760020684676,0.86949,121680.0,121670.0,0.0831566]
[1760020684875,0.50869,121680.0,121670.0,1.11766651]
[1760020685175,0.50869,121680.0,121670.0,1.19982311]
[1760020685371,0.03566,121680.0,121670.0,1.18626311]
[1760020685571,0.03666,121690.0,121680.0,0.0821499]
[1760020685775,0.03666,121700.0,121690.0,0.0821431]
[1760020685976,0.03666,121700.0,121690.0,1.19892961]
[1760020686169,0.03666,121700.0,121690.0,1.17448]
[1760020686371,0.03666,121700.0,121690.0,1.51678651]
[1760020686567,0.39746,121710.0,121690.0,1.59892961]
[1760020686776,0.09877,121710.0,121700.0,0.34230651]
[1760020686967,0.87041,121710.0,121700.0,0.34230651]
[1760020687167,0.50961,121710.0,121700.0,0.34230651]
[1760020687368,0.03666,121690.0,121680.0,0.34230651]
[1760020687666,0.09877,121690.0,121680.0,1.11670651]
[1760020687872,0.03666,121690.0,121680.0,1.59885641]
[1760020688176,0.03666,121700.0,121680.0,1.95977641]
[1760020688376,0.03766,121700.0,121690.0,0.78524961]
[1760020688575,0.001,121700.0,121690.0,0.78524961]
[1760020688777,0.09977,121700.0,121690.0,1.47786651]
[1760020689273,0.03666,121700.0,121690.0,0.78524961]
[1760020689675,0.09877,121700.0,121690.0,1.47786651]
[1760020689870,0.03666,121710.0,121700.0,0.0821364]
[1760020690076,0.03666,121710.0,121700.0,1.19916291]
[1760020690275,0.03666,121710.0,121700.0,1.95996291]
[1760020690872,0.03666,121710.0,121700.0,1.94387727]
[1760020691074,0.03666,121710.0,121700.0,2.02601357]
[1760020691270,0.03666,121710.0,121700.0,1.25129357]
[1760020691477,0.03666,121710.0,121700.0,1.16915727]
[1760020691672,0.03666,121710.0,121700.0,0.40835727]
[1760020691980,0.51454,121710.0,121700.0,0.84041076]
[1760020692175,0.51554,121710.0,121700.0,0.84025076]
[1760020692376,0.51554,121710.0,121700.0,0.7742]
[1760020692580,0.51554,121710.0,121700.0,1.47722651]
[1760020692978,0.51554,121710.0,121700.0,0.34230651]
[1760020693278,0.51554,121710.0,121700.0,1.11634651]
[1760020694079,0.4485,121710.0,121700.0,0.42444281]
[1760020694375,0.1047,121710.0,121700.0,1.11590651]
[1760020694583,0.87634,121710.0,121700.0,0.06472357]
[1760020694774,0.03736,121690.0,121680.0,0.70310651]
[1760020694979,0.03736,121690.0,121680.0,1.47682651]
[1760020694980,0.1044,121690.0,121680.0,1.47682651]
[1760020695178,0.03736,121700.0,121680.0,1.55897631]
[1760020695383,0.03736,121700.0,121690.0,0.70310651]
[1760020695576,0.1044,121700.0,121690.0,0.34230651]
[1760020695779,0.1044,121700.0,121690.0,0.70310651]
[1760020695977,0.51528,121700.0,121690.0,0.70310651]
[1760020696174,0.1044,121690.0,121680.0,0.70410651]
[1760020696379,0.1044,121690.0,121680.0,1.47802651]
[1760020696583,0.91528,121690.0,121680.0,0.001]
[1760020696883,0.1044,121670.0,121660.0,0.76941559]
[1760020697083,0.1044,121670.0,121660.0,1.54349559]
[1760020697478,1.27616,121670.0,121660.0,0.06630908]
[1760020697677,1.27616,121670.0,121640.0,0.78534315]
[1760020697876,0.1044,121650.0,121640.0,0.70316655]
[1760020698084,0.1044,121650.0,121640.0,1.47736655]
[1760020698380,0.1044,121650.0,121640.0,1.54246932]
[1760020698980,0.1044,121650.0,121640.0,0.42604281]
[1760020699182,0.1044,121650.0,121640.0,1.20192281]
[1760020699375,0.1044,121650.0,121640.0,1.18542932]
[1760020699581,0.1044,121650.0,121640.0,0.41154932]
[1760020699783,0.1044,121650.0,121640.0,1.18534932]
[1760020699985,0.51544,121650.0,121640.0,1.18534932]
[1760020700379,0.51544,121650.0,121640.0,1.62824622]
[1760020700781,0.51544,121650.0,121640.0,1.54606932]
[1760020700988,0.51544,121650.0,121640.0,1.18506932]
[1760020701481,0.51544,121650.0,121640.0,0.84276281]
[1760020701688,0.51544,121650.0,121640.0,0.84260281]
[1760020701882,0.51544,121650.0,121640.0,0.06924281]
[1760020702083,0.51544,121650.0,121640.0,0.84252281]
[1760020702789,1.27624,121650.0,121640.0,0.00406004]
[1760020703085,1.61854651,121650.0,121640.0,0.00406004]
[1760020703290,1.27624,121650.0,121640.0,0.00406004]
[1760020704383,0.87624,121650.0,121640.0,0.00406004]
[1760020704682,0.51544,121650.0,121640.0,1.41402345]
[1760020704880,0.03736,121650.0,121640.0,1.82226345]
[1760020705083,0.03736,121660.0,121640.0,2.18306345]
[1760020705285,0.03736,121660.0,121650.0,1.19843661]
[1760020705484,0.03736,121660.0,121650.0,1.44626651]
[1760020705681,0.1044,121660.0,121650.0,0.77416]
[1760020705987,0.1044,121660.0,121650.0,1.11646651]
[1760020706191,0.1044,121660.0,121650.0,0.77416]
[1760020706489,0.1044,121650.0,121640.0,0.70516655]
[1760020706682,0.1044,121650.0,121640.0,1.11832655]
[1760020706884,0.1044,121650.0,121640.0,1.22832655]
[1760020707082,0.1044,121650.0,121640.0,1.58912655]
[1760020707483,0.03736,121650.0,121640.0,1.89130345]
[1760020707682,0.03736,121650.0,121640.0,1.47912655]
[1760020707882,0.03736,121650.0,121640.0,1.58712655]
[1760020708082,0.03736,121650.0,121640.0,1.58912655]
[1760020708786,0.03736,121650.0,121640.0,1.23032655]
[1760020708991,0.51544,121650.0,121640.0,0.77738004]
[1760020709184,0.51544,121650.0,121640.0,0.00406004]
[1760020709386,0.51544,121650.0,121640.0,1.11964655]
[1760020709691,0.51544,121650.0,121640.0,0.34636655]
[1760020709886,0.87624,121650.0,121640.0,0.00406004]
[1760020710094,0.87624,121650.0,121640.0,0.77726004]
[1760020710386,0.51544,121650.0,121640.0,0.00406004]
[1760020710596,0.39816,121660.0,121640.0,1.40716655]
[1760020710791,0.03736,121660.0,121650.0,0.78527661]
[1760020710980,0.03736,121670.0,121650.0,1.85855661]
[1760020711186,0.03736,121670.0,121660.0,0.34230651]
[1760020711388,0.03736,121670.0,121660.0,1.11554651]
[1760020712394,0.03736,121670.0,121660.0,1.11654651]
[1760020712689,0.03736,121670.0,121660.0,1.55950991]
[1760020712889,0.03736,121680.0,121670.0,0.0821566]
[1760020713089,0.41096,121670.0,121660.0,0.443959]
[1760020713396,0.41096,121670.0,121660.0,1.5269234]
[1760020713582,0.03736,121680.0,121670.0,0.0821566]
[1760020713887,0.39816,121700.0,121670.0,0.0821566]
[1760020713888,0.39816,121700.0,121670.0,1.43356]
[1760020714091,0.03736,121710.0,121690.0,0.4429404]
[1760020714288,0.03736,121710.0,121700.0,1.11530651]
[1760020714488,0.03736,121710.0,121700.0,0.99524291]
[1760020714698,0.08236,121720.0,121700.0,4.13846651]
[1760020714888,0.5602,121720.0,121710.0,1.11550651]
[1760020715083,0.5602,121720.0,121710.0,0.44230651]
[1760020715295,0.5602,121720.0,121710.0,0.34230651]
[1760020715487,0.5602,121720.0,121710.0,0.88356]
[1760020715682,0.08236,121720.0,121710.0,1.10310651]
[1760020715889,0.08236,121720.0,121710.0,0.82310651]
[1760020716093,0.08236,121720.0,121710.0,1.51523611]
[1760020716094,0.045,121720.0,121710.0,1.51523611]
[1760020716389,0.02684423,121720.0,121710.0,1.51523611]
[1760020716691,0.03736,121750.0,121710.0,4.34151151]
[1760020716885,0.51516,121750.0,121740.0,0.34230651]
[1760020717089,0.51516,121740.0,121720.0,2.41276]
[1760020717284,0.03736,121730.0,121720.0,2.80814301]
[1760020717491,0.03736,121730.0,121720.0,3.92508952]
[1760020717793,0.03736,121730.0,121720.0,3.15044952]
[1760020717992,0.03736,121740.0,121720.0,3.92512952]
[1760020718192,0.03736,121740.0,121730.0,0.70310651]
[1760020718390,0.1044,121740.0,121730.0,1.57750651]
[1760020718592,0.1044,121740.0,121730.0,1.57746651]
[1760020719197,0.1044,121740.0,121730.0,0.80310651]
[1760020719396,0.1044,121740.0,121730.0,0.70310651]
[1760020719595,0.1054,121740.0,121730.0,1.47710651]
[1760020719994,0.1054,121740.0,121730.0,1.47702651]
[1760020720186,0.03927,121730.0,121720.0,0.76848952]
[1760020720390,0.52056,121730.0,121720.0,1.54228952]
[1760020720591,0.52056,121730.0,121720.0,0.76848952]
[1760020720789,0.52056,121730.0,121720.0,1.54224952]
[1760020720995,0.52056,121730.0,121720.0,1.18144952]
[1760020721494,0.41076,121730.0,121720.0,0.88848952]
[1760020721694,0.03927,121750.0,121730.0,0.0821161]
[1760020721902,0.03927,121740.0,121730.0,0.32]
[1760020722193,0.03927,121740.0,121730.0,1.87890261]
[1760020722395,0.03927,121740.0,121730.0,1.31448]
[1760020722698,0.03927,121750.0,121730.0,1.73886261]
[1760020722896,0.44999,121750.0,121740.0,0.70310651]
[1760020723097,0.44999,121750.0,121740.0,1.10521591]
[1760020723394,0.03927,121760.0,121740.0,1.50521591]
[1760020723594,0.03927,121760.0,121750.0,1.47642651]
[1760020723897,0.03927,121760.0,121750.0,1.72642651]
[1760020724097,0.03927,121760.0,121750.0,1.57642651]
[1760020724588,0.03927,121770.0,121750.0,2.26852911]
[1760020724792,0.03927,121770.0,121760.0,0.18461302]
[1760020724990,0.03927,121770.0,121760.0,0.86750892]
[1760020725189,0.03927,121770.0,121760.0,1.64066892]
[1760020725586,0.03927,121780.0,121760.0,1.18541302]
[1760020725795,0.03927,121780.0,121770.0,1.11546651]
[1760020725994,0.03927,121780.0,121770.0,1.35546651]
[1760020726494,0.03927,121780.0,121770.0,1.18199796]
[1760020726689,0.03927,121780.0,121770.0,0.50883796]
[1760020726890,0.03927,121790.0,121770.0,1.45963796]
[1760020727095,0.40007,121790.0,121780.0,0.28518891]
[1760020727292,0.40007,121790.0,121780.0,0.77284]
[1760020727494,0.40007,121790.0,121780.0,0.34230651]
[1760020727696,1.27597,121790.0,121780.0,0.12]
[1760020728200,0.46541,121790.0,121780.0,0.89292]
[1760020728399,0.46541,121790.0,121780.0,1.23622651]
[1760020728596,0.46541,121790.0,121780.0,0.46330651]
[1760020728802,0.46541,121790.0,121780.0,0.8938]
[1760020729002,0.46541,121790.0,121780.0,0.12]
[1760020729197,0.87597,121790.0,121780.0,0.89272]
[1760020729496,1.27597,121790.0,121780.0,0.89272]
[1760020729691,0.10707,121780.0,121770.0,0.06653145]
[1760020729897,0.87843,121780.0,121770.0,0.77308]
[1760020730200,0.04173,121760.0,121750.0,2.47524911]
[1760020730401,0.04173,121760.0,121750.0,2.70524911]
[1760020730606,0.40253,121770.0,121760.0,0.0820959]
[1760020730896,0.40253,121770.0,121760.0,1.44720241]
[1760020730897,0.04173,121770.0,121760.0,1.44720241]
[1760020731292,0.04173,121770.0,121760.0,1.19720241]
[1760020731490,0.04173,121770.0,121760.0,1.51720241]
[1760020731693,0.04173,121770.0,121760.0,1.30720241]
[1760020731895,0.04173,121770.0,121760.0,1.51820241]
[1760020732100,0.46541,121790.0,121770.0,0.0820891]
[1760020732298,0.04173,121780.0,121770.0,0.4220891]
[1760020732599,0.81067,121790.0,121770.0,0.4220891]
[1760020732600,0.40007,121790.0,121770.0,0.76439561]
[1760020732798,0.40007,121790.0,121780.0,0.42438891]
[1760020732999,0.40007,121790.0,121780.0,0.17602707]
[1760020733303,0.40007,121790.0,121780.0,0.3420824]
[1760020733500,0.04173,121800.0,121790.0,0.0820757]
[1760020733801,0.04173,121800.0,121790.0,0.69438221]
[1760020733996,0.04173,121790.0,121780.0,0.42438831]
[1760020734200,0.40253,121790.0,121780.0,3.13384]
[1760020734392,0.40353,121790.0,121780.0,3.2159224]
[1760020734597,0.04273,121790.0,121780.0,3.2159224]
[1760020734994,0.04273,121790.0,121780.0,3.13384]
[1760020735302,0.04273,121790.0,121780.0,3.28061002]
[1760020735501,0.001,121790.0,121780.0,2.90737002]
[1760020735693,0.001,121790.0,121780.0,3.68033002]
[1760020735894,0.001,121790.0,121780.0,3.61047653]
[1760020736100,0.04273,121790.0,121780.0,3.98343653]
[1760020736294,0.04273,121790.0,121780.0,3.21031653]
[1760020736597,0.001,121790.0,121780.0,3.21031653]
[1760020736803,0.04273,121790.0,121780.0,3.21031653]
[1760020736998,0.04273,121790.0,121780.0,3.19792762]
[1760020737204,0.46887,121790.0,121780.0,0.06468762]
[1760020737398,0.46887,121790.0,121780.0,0.7728]
[1760020737605,0.87943,121790.0,121780.0,0.83771742]
[1760020738399,1.27943,121790.0,121780.0,0.06491742]
[1760020738599,1.27943,121790.0,121760.0,2.1324144]
[1760020738796,0.40253,121770.0,121760.0,2.17032]
[1760020738997,0.40253,121770.0,121760.0,3.2448959]
[1760020739706,0.40253,121770.0,121760.0,2.81472241]
[1760020739900,0.40253,121780.0,121770.0,0.0820891]
[1760020740101,0.81313,121780.0,121770.0,0.34230651]
[1760020740306,0.04173,121770.0,121760.0,3.31351989]
[1760020740504,0.40253,121770.0,121760.0,0.81103989]
[1760020740708,0.40253,121770.0,121760.0,1.58399989]
[1760020741002,0.40253,121770.0,121760.0,0.41094859]
[1760020741003,0.10707,121770.0,121760.0,0.41094859]
[1760020741209,0.87851,121770.0,121760.0,0.06864208]
[1760020741505,0.87851,121770.0,121760.0,0.84172208]
[1760020742103,0.87851,121770.0,121760.0,1.22395222]
[1760020742406,0.87851,121770.0,121760.0,1.34395222]
[1760020742707,0.87851,121770.0,121760.0,0.84148208]
[1760020742909,0.87851,121770.0,121760.0,0.06964208]
[1760020743108,0.87851,121770.0,121760.0,0.84140208]
[1760020743511,1.27851,121770.0,121760.0,0.06964208]
[1760020743707,1.27851,121770.0,121760.0,0.84128208]
[1760020744009,1.30830871,121770.0,121760.0,0.84128208]
[1760020744210,1.69073885,121770.0,121760.0,0.003]
[1760020744407,1.30830871,121770.0,121760.0,0.77472]
[1760020745912,1.30830871,121770.0,121760.0,0.77364]
[1760020746212,1.69173885,121770.0,121760.0,0.77364]
[1760020746409,0.10707,121740.0,121730.0,0.07268872]
[1760020746602,0.46787,121740.0,121730.0,0.07268872]
[1760020746808,0.46787,121740.0,121730.0,6.616e-05]
[1760020746809,1.27859,121740.0,121730.0,6.616e-05]
[1760020747007,1.66102014,121740.0,121730.0,0.77158616]
[1760020747410,1.66102014,121740.0,121730.0,6.616e-05]
[1760020747705,1.66102014,121740.0,121730.0,0.00406616]
[1760020748106,0.04173,121720.0,121700.0,0.07262256]
[1760020748314,0.85030014,121720.0,121710.0,0.39276]
[1760020748508,0.82867,121720.0,121710.0,0.46538256]
[1760020748706,1.63947,121720.0,121710.0,0.46538256]
[1760020748910,2.02190014,121720.0,121710.0,0.39276]
[1760020749211,0.10707,121710.0,121700.0,0.07462256]
[1760020749409,1.26110014,121710.0,121700.0,0.84702299]
[1760020749804,1.26110014,121710.0,121700.0,0.07550299]
[1760020750010,1.66110014,121710.0,121700.0,0.07350299]
[1760020750515,1.69080977,121710.0,121700.0,0.07350299]
[1760020750906,1.30837963,121710.0,121700.0,0.07350299]
[1760020751112,1.69080977,121710.0,121700.0,0.07350299]
[1760020751706,1.69087853,121710.0,121700.0,2.99e-06]
[1760020751906,2.46211853,121710.0,121700.0,0.001]
[1760020752109,0.03936,121660.0,121650.0,0.6318114]
[1760020752308,0.37048725,121670.0,121650.0,1.6229714]
[1760020752610,0.3608,121660.0,121650.0,0.24938126]
[1760020752812,0.1078,121650.0,121640.0,0.06727656]
[1760020753114,0.63025224,121650.0,121640.0,0.83835656]
[1760020753316,1.01268238,121650.0,121640.0,0.83835656]
[1760020753512,0.63025224,121650.0,121640.0,0.77115656]
[1760020753817,1.01268238,121650.0,121640.0,0.77147656]
[1760020754019,1.41268238,121650.0,121640.0,0.00207656]
[1760020754216,1.44236948,121650.0,121640.0,0.00207656]
[1760020755512,1.44236948,121650.0,121640.0,7.656e-05]
[1760020758719,0.03936,121620.0,121610.0,2.54996]
[1760020758919,1.14339014,121620.0,121610.0,2.54996]
[1760020759118,1.30504238,121620.0,121610.0,2.54996]
[1760020759320,1.30504238,121620.0,121610.0,0.49912]
[1760020759321,1.37348238,121620.0,121610.0,0.49912]
[1760020759520,0.1078,121600.0,121590.0,0.0672]
[1760020759723,0.1078,121600.0,121590.0,1.13776]
[1760020759724,0.10787656,121600.0,121590.0,1.13776]
[1760020760119,0.10787656,121600.0,121590.0,1.2199707]
[1760020760120,7.656e-05,121600.0,121590.0,1.2199707]
[1760020760315,7.656e-05,121600.0,121590.0,1.2198507]
[1760020760516,7.656e-05,121600.0,121590.0,0.74963014]
[1760020760719,7.656e-05,121600.0,121590.0,1.60236084]
[1760020761014,7.656e-05,121600.0,121590.0,1.68658674]
[1760020761216,0.03936,121640.0,121620.0,0.1493904]
[1760020761217,0.40016,121640.0,121620.0,0.1493904]
[1760020761417,0.52245224,121630.0,121620.0,0.44963014]
[1760020761623,0.52245224,121630.0,121620.0,1.31375014]
[1760020761925,0.3608,121630.0,121620.0,1.21375014]
[1760020762227,0.3608,121650.0,121640.0,0.1493769]
[1760020762432,0.3608,121650.0,121640.0,0.0672]
[1760020762630,0.63025224,121650.0,121640.0,0.8382]
[1760020763225,0.63025224,121650.0,121640.0,0.0672]
[1760020763427,0.63025224,121650.0,121640.0,0.77112]
[1760020763736,0.03936,121640.0,121610.0,2.91513234]
[1760020763935,0.63025224,121640.0,121630.0,0.0672]
[1760020764135,0.20101224,121630.0,121610.0,0.3608]
[1760020764439,0.1078,121610.0,121600.0,2.05212]
[1760020764632,0.4686,121610.0,121600.0,0.0672]
[1760020764837,0.63025224,121610.0,121600.0,0.94824]
[1760020765135,0.63025224,121610.0,121600.0,0.83824]
[1760020765737,0.63025224,121610.0,121600.0,0.8382]
[1760020765936,0.63025224,121610.0,121600.0,0.8402]
[1760020766343,0.63025224,121610.0,121600.0,0.002]
[1760020766635,0.63025224,121610.0,121600.0,0.7728]
[1760020767030,0.63025224,121610.0,121600.0,0.84]
[1760020767433,0.63025224,121610.0,121600.0,0.7728]
[1760020767834,0.63025224,121610.0,121600.0,0.84]
[1760020768239,0.63025224,121610.0,121600.0,0.7728]
[1760020768433,1.01268238,121610.0,121600.0,0.002]
[1760020768636,1.41268238,121610.0,121600.0,0.002]
[1760020768831,1.41268238,121610.0,121600.0,0.59848]
[1760020769437,1.41268238,121610.0,121570.0,2.05244]
[1760020769438,0.1078,121580.0,121570.0,0.0672]
[1760020769638,0.4686,121580.0,121570.0,0.83752]
[1760020769834,0.4686,121580.0,121570.0,0.0672]
[1760020770033,0.4686,121580.0,121570.0,0.83736]
[1760020770231,0.3608,121580.0,121570.0,1.70201434]
[1760020770543,0.3608,121580.0,121570.0,2.03168434]
[1760020770941,0.3608,121580.0,121570.0,1.6492542]
[1760020771138,0.3608,121580.0,121570.0,2.03168434]
[1760020771338,0.3608,121580.0,121570.0,1.40201434]
[1760020771533,0.3608,121580.0,121570.0,0.83936]
[1760020771733,0.4686,121580.0,121570.0,0.0692]
[1760020772138,1.01268238,121580.0,121570.0,0.002]
[1760020772333,1.01268238,121580.0,121570.0,0.77232]
[1760020772538,0.63025224,121580.0,121570.0,0.83952]
[1760020772744,0.63025224,121580.0,121570.0,0.83956]
[1760020773339,0.3608,121580.0,121570.0,1.13163014]
[1760020773648,0.4686,121580.0,121570.0,0.83944]
[1760020773845,0.63025224,121580.0,121570.0,0.83944]
[1760020774145,0.63025224,121580.0,121570.0,0.0692]
[1760020774343,0.63025224,121580.0,121570.0,0.73548]
[1760020774538,0.63025224,121580.0,121570.0,0.002]
[1760020774743,1.01268238,121580.0,121570.0,0.002]
[1760020775147,1.01268238,121580.0,121540.0,2.05296]
[1760020775148,0.06844,121550.0,121540.0,2.05296]
[1760020775452,0.4686,121550.0,121540.0,0.0672]
[1760020775743,0.63025224,121550.0,121540.0,0.83744]
[1760020776641,0.52245224,121550.0,121540.0,0.1494445]
[1760020776846,0.52245224,121550.0,121540.0,1.63203464]
[1760020777141,0.3608,121560.0,121550.0,0.1494377]
[1760020777344,0.40016,121570.0,121550.0,1.55182784]
[1760020777545,0.16165224,121560.0,121550.0,1.55182784]
[1760020777735,0.52245224,121560.0,121550.0,1.55182784]
[1760020777936,0.3608,121560.0,121550.0,0.0672]
[1760020778143,0.3608,121560.0,121550.0,0.8372]
[1760020778450,0.4686,121560.0,121550.0,0.8372]
[1760020778642,0.4686,121560.0,121550.0,0.83716]
[1760020779041,0.1078,121550.0,121540.0,0.0672]
[1760020779243,0.63025224,121550.0,121540.0,0.83696]
[1760020779444,0.63025224,121550.0,121540.0,0.0672]
[1760020779643,0.63025224,121550.0,121540.0,0.83712]
[1760020779945,0.63025224,121550.0,121540.0,0.0672]
[1760020780143,0.63025224,121550.0,121540.0,0.1672]
[1760020780343,0.63025224,121550.0,121540.0,0.83696]
[1760020780543,0.63025224,121550.0,121540.0,0.837]
[1760020780744,0.63025224,121550.0,121540.0,0.0672]
[1760020780945,0.63025224,121550.0,121540.0,0.1772]
[1760020781147,0.63025224,121550.0,121540.0,1.0290845]
[1760020781347,0.63025224,121550.0,121540.0,0.1494445]
[1760020781546,0.63025224,121550.0,121540.0,1.14668]
[1760020781747,0.63025224,121550.0,121540.0,1.2289245]
[1760020782348,0.63025224,121550.0,121540.0,0.0672]
[1760020782547,0.63025224,121550.0,121540.0,0.83656]
[1760020782952,0.63025224,121550.0,121540.0,1.1488045]
[1760020783247,0.40016,121560.0,121550.0,0.0822377]
[1760020783445,0.3608,121560.0,121550.0,1.62524784]
[1760020783651,0.3608,121560.0,121550.0,0.88421784]
[1760020783845,0.3608,121560.0,121550.0,1.65357784]
[1760020784046,0.47602,121560.0,121550.0,0.45365014]
[1760020784242,0.40452,121560.0,121550.0,0.9228177]
[1760020784448,0.3608,121560.0,121550.0,1.2528177]
[1760020785042,0.40016,121570.0,121560.0,0.0822309]
[1760020785246,0.3608,121570.0,121560.0,0.90220104]
[1760020785650,0.3608,121570.0,121560.0,0.39878]
[1760020785847,0.42888,121570.0,121560.0,0.06878]
[1760020786051,0.42888,121570.0,121560.0,0.18878]
[1760020786254,0.46809,121570.0,121560.0,0.06878]
[1760020786449,0.03921,121560.0,121550.0,0.06878]
[1760020786653,0.62974224,121560.0,121550.0,0.83818]
[1760020787548,0.62974224,121560.0,121550.0,0.06878]
[1760020787748,0.62974224,121560.0,121550.0,0.31878]
[1760020788048,0.16165224,121560.0,121550.0,1.55284784]
[1760020788244,0.52245224,121560.0,121550.0,1.55284784]
[1760020788552,0.52245224,121560.0,121550.0,1.47061014]
[1760020788752,0.62974224,121560.0,121550.0,0.83818]
[1760020789150,0.03921,121550.0,121540.0,0.06878]
[1760020789349,0.62974224,121550.0,121540.0,1.14818]
[1760020789650,0.62974224,121550.0,121540.0,0.37878]
[1760020790046,0.62974224,121550.0,121540.0,1.14818]
[1760020790244,0.62974224,121550.0,121540.0,1.61285464]
[1760020790456,0.52245224,121550.0,121540.0,1.61285464]
[1760020790645,0.52245224,121550.0,121540.0,1.65161464]
[1760020791044,0.40001,121570.0,121550.0,0.1793476]
[1760020791246,0.56166224,121570.0,121560.0,1.15183014]
[1760020791452,0.62974224,121570.0,121560.0,0.83818]
[1760020791652,0.62974224,121570.0,121560.0,0.06878]
[1760020791852,0.62974224,121570.0,121560.0,1.08818]
[1760020792154,0.62974224,121570.0,121560.0,0.06878]
[1760020792359,0.62974224,121570.0,121560.0,0.4310109]
[1760020792650,0.56166224,121570.0,121560.0,1.2004109]
[1760020792856,0.56166224,121570.0,121560.0,1.58284104]
[1760020793053,0.3608,121580.0,121570.0,0.1510042]
[1760020793351,0.3608,121590.0,121580.0,0.06878]
[1760020793352,0.46809,121590.0,121580.0,0.06878]
[1760020793656,0.3608,121590.0,121580.0,1.59282754]
[1760020793853,0.3608,121590.0,121580.0,2.01820287]
[1760020794356,0.3608,121590.0,121580.0,2.08453579]
[1760020794551,0.3608,121600.0,121590.0,0.1509907]
[1760020794859,0.38259182,121600.0,121590.0,0.90175084]
[1760020795050,0.38259182,121600.0,121590.0,1.67115084]
[1760020795650,0.02179182,121600.0,121590.0,0.90175084]
[1760020795856,0.40001,121620.0,121600.0,0.1885739]
[1760020796057,0.56166224,121620.0,121610.0,1.15179014]
[1760020796255,0.56166224,121620.0,121610.0,1.25179014]
[1760020796456,0.52245224,121620.0,121610.0,1.32057014]
[1760020796852,0.52245224,121620.0,121610.0,1.40276724]
[1760020797154,0.52245224,121620.0,121610.0,1.32057014]
[1760020797353,0.52345224,121620.0,121610.0,1.32057014]
[1760020797546,0.63274224,121620.0,121610.0,0.06878]
[1760020797745,0.63274224,121620.0,121610.0,0.83814]
[1760020797954,0.63274224,121620.0,121610.0,0.06878]
[1760020798152,0.10729,121610.0,121580.0,0.44876306]
[1760020798458,0.46809,121600.0,121590.0,0.83814]
[1760020798663,0.62974224,121600.0,121590.0,0.83814]
[1760020798851,0.62974224,121600.0,121590.0,1.1403507]
[1760020799153,0.62974224,121600.0,121590.0,0.06878]
[1760020799360,0.10729,121590.0,121570.0,2.05344]
[1760020799559,0.40001,121580.0,121570.0,2.39344]
[1760020799759,0.62974224,121580.0,121570.0,0.40878]
[1760020800056,0.10729,121570.0,121560.0,0.13365047]
[1760020800249,0.52245224,121570.0,121560.0,0.63608061]
[1760020800454,0.62974224,121570.0,121560.0,0.25365047]
[1760020800651,0.62974224,121570.0,121560.0,0.06878]
[1760020801157,0.62974224,121570.0,121560.0,0.75092]
[1760020801749,0.10729,121560.0,121550.0,0.06878]
[1760020801954,0.62974224,121560.0,121550.0,0.06878]
[1760020802153,0.62974224,121560.0,121550.0,0.16878]
[1760020802454,0.52245224,121560.0,121550.0,0.4710177]
[1760020802658,0.3608,121580.0,121570.0,0.0822242]
[1760020802958,0.3608,121590.0,121580.0,0.1793274]
[1760020803159,0.3608,121600.0,121590.0,0.06878]
[1760020803357,0.3608,121600.0,121590.0,0.4309907]
[1760020803556,0.3608,121610.0,121600.0,0.1897439]
[1760020803751,0.3608,121610.0,121600.0,0.8381]
[1760020803952,0.62974224,121610.0,121600.0,0.76932]
[1760020804154,0.03921,121600.0,121580.0,0.06555035]
[1760020804354,0.26894224,121600.0,121590.0,0.8381]
[1760020804555,0.46809,121600.0,121590.0,0.06878]
[1760020804854,0.62974224,121600.0,121590.0,0.48038]
[1760020806250,0.62974224,121600.0,121590.0,0.06878]
[1760020806451,0.62974224,121600.0,121590.0,0.80966]
[1760020806648,0.62974224,121600.0,121590.0,0.06878]
[1760020806849,0.62974224,121600.0,121590.0,0.83806]
[1760020807052,0.52345224,121600.0,121590.0,0.93806]
[1760020807254,0.16265224,121600.0,121590.0,0.93806]
[1760020807451,0.52345224,121600.0,121590.0,0.93806]
[1760020807656,0.001,121600.0,121590.0,2.04214418]
[1760020807855,0.3608,121610.0,121600.0,0.09711]
[1760020808055,0.3608,121610.0,121600.0,0.52189348]
[1760020808249,0.3608,121610.0,121600.0,1.14806]
[1760020808454,0.3608,121610.0,121600.0,0.83806]
[1760020808660,0.3608,121610.0,121600.0,0.94806]
[1760020809555,0.3608,121610.0,121600.0,1.2202239]
[1760020809756,0.3608,121610.0,121600.0,1.19409738]
[1760020809956,0.3608,121630.0,121610.0,0.1881671]
[1760020810160,0.03921,121650.0,121640.0,0.1535069]
[1760020810161,0.3608,121650.0,121640.0,0.1535069]
[1760020810460,0.38229653,121650.0,121640.0,1.42368348]
[1760020810656,0.02149653,121650.0,121640.0,1.50582038]
[1760020810861,0.3608,121660.0,121640.0,1.42364348]
[1760020811057,0.16165224,121650.0,121640.0,1.42364348]
[1760020811258,0.3608,121660.0,121640.0,1.50581898]
[1760020811458,0.16165224,121650.0,121640.0,0.73661898]
[1760020811661,0.3608,121660.0,121640.0,1.90581898]
[1760020811858,0.52245224,121660.0,121650.0,1.18364348]
[1760020812060,0.52245224,121660.0,121650.0,0.35133]
[1760020812262,0.52245224,121660.0,121650.0,0.84053]
[1760020812561,0.52245224,121660.0,121650.0,0.97517]
[1760020813059,0.52245224,121660.0,121650.0,0.07133]
[1760020813260,0.52245224,121660.0,121650.0,0.63637]
[1760020813564,0.52245224,121660.0,121650.0,0.97637]
[1760020814159,0.52245224,121660.0,121650.0,0.87125358]
[1760020814457,0.3608,121680.0,121660.0,0.0821634]
[1760020814658,0.3608,121670.0,121660.0,0.84493688]
[1760020814861,0.16165224,121680.0,121670.0,0.1922466]
[1760020815055,0.16165224,121680.0,121670.0,1.62444008]
[1760020815254,0.3608,121690.0,121680.0,0.1534798]
[1760020815460,0.3608,121700.0,121690.0,0.10597]
[1760020815665,0.52245224,121700.0,121690.0,1.29348348]
[1760020815859,0.52245224,121700.0,121690.0,0.84037]
[1760020816059,0.63195224,121700.0,121690.0,0.84037]
[1760020816657,0.52445224,121700.0,121690.0,0.94037]
[1760020816863,0.52445224,121700.0,121690.0,0.07133]